bitfinex-derivatives/quotes_ETHF0:USTF0_20210401
["timestamp","ask_amount","ask_price","bid_price","bid_amount"]
[1617239475856,15.90695,1927.7,1927.6,5.04709225]
[1617239476258,15.90695,1927.7,1927.6,3.22313308]
[1617239476458,15.90695,1927.7,1927.6,2.90695]
[1617239477257,15.90695,1927.7,1927.6,1.82411915]
[1617239478858,15.90695,1927.7,1927.5,2.90695]
[1617239479058,15.90695,1927.7,1927.6,0.31534368]
[1617239483061,15.90695,1927.7,1927.6,6.86783695]
[1617239486268,15.90695,1927.7,1927.6,0.31534368]
[1617239486668,13.0,1927.7,1927.6,0.31534368]
[1617239488273,13.0,1927.7,1927.6,8.03626789]
[1617239488670,13.0,1927.7,1927.6,0.31534368]
[1617239503490,11.96,1927.7,1927.6,0.31534368]
[1617239503689,11.5541,1927.7,1927.6,0.31534368]
[1617239503890,11.5541,1927.7,1927.6,9.16677298]
[1617239504292,11.0512,1927.7,1927.6,0.31534368]
[1617239504891,10.0231,1927.7,1927.6,0.31534368]
[1617239505095,8.8726,1927.7,1927.6,0.31534368]
[1617239505492,5.6152,1927.7,1927.6,0.31534368]
[1617239505693,5.1794,1927.7,1927.6,0.31534368]
[1617239506094,2.9052,1927.7,1927.6,0.31534368]
[1617239506293,73.54,1928.8,1927.6,0.31534368]
[1617239507096,73.54,1928.8,1928.6,6.48507889]
[1617239507696,73.54,1928.8,1928.7,0.31242559]
[1617239507896,73.54,1928.8,1928.7,3.21937559]
[1617239508297,73.54,1928.8,1928.7,8.52799651]
[1617239508697,73.54,1928.8,1928.7,9.56889651]
[1617239509501,73.54,1928.8,1928.7,3.94785]
[1617239510999,73.54,1928.8,1928.7,2.90695]
[1617239512202,73.54,1928.8,1928.7,3.95115]
[1617239512400,73.54,1928.8,1928.7,2.90695]
[1617239513502,73.54,1928.8,1928.7,3.95335]
[1617239513702,73.54,1928.8,1928.7,2.90695]
[1617239515904,73.54,1928.8,1928.7,3.95305]
[1617239517507,72.3373,1928.8,1928.7,3.95305]
[1617239517708,72.2976,1928.8,1928.7,3.95305]
[1617239517908,72.2976,1928.8,1928.7,2.90695]
[1617239518910,72.2976,1928.8,1928.7,3.93745]
[1617239519610,72.2976,1928.8,1928.7,2.90695]
[1617239520611,72.2976,1928.8,1928.7,3.92885]
[1617239521210,72.2976,1928.8,1928.7,2.90695]
[1617239521410,72.0315,1928.8,1928.7,2.90695]
[1617239522313,72.0315,1928.8,1928.7,3.93445]
[1617239522712,71.6486,1928.8,1928.7,3.93445]
[1617239523511,71.6486,1928.8,1928.7,2.90695]
[1617239525114,70.8808,1928.8,1928.7,2.90695]
[1617239528616,70.8808,1928.8,1928.7,3.95845]
[1617239529017,70.726,1928.8,1928.7,3.95845]
[1617239531017,70.726,1928.8,1928.7,2.90695]
[1617239531816,70.726,1928.8,1927.8,5.14186193]
[1617239532016,70.726,1928.8,1927.9,1.82203697]
[1617239532416,70.726,1928.8,1928.7,2.90695]
[1617239533922,2.90695,1929.7,1929.3,72.848]
[1617239534419,2.90695,1929.7,1929.6,2.90695]
[1617239537829,2.90695,1929.7,1928.8,80.3217]
[1617239538028,80.33,1929.6,1928.8,80.3217]
[1617239538429,80.33,1929.6,1929.2,2.90695]
[1617239538829,1.0696,1929.7,1929.2,2.90695]
[1617239539229,1.0696,1929.7,1928.1,80.4074]
[1617239539230,80.4074,1929.2,1928.1,80.4074]
[1617239539429,1.1285,1929.2,1926.9,4.08159421]
[1617239539628,69.825,1928.3,1926.8,73.90833447]
[1617239539829,70.7761,1928.3,1926.8,69.825]
[1617239540432,70.7761,1928.3,1928.2,2.90695]
[1617239544435,70.7761,1928.3,1926.8,73.91669469]
[1617239544436,11.09305,1928.2,1926.8,69.825]
[1617239545940,11.09305,1928.2,1926.8,70.866]
[1617239546142,11.09305,1928.2,1926.9,0.31461126]
[1617239546343,11.09305,1928.2,1928.1,2.90695]
[1617239548343,14.0,1928.2,1928.1,2.90695]
[1617239550345,11.09305,1928.2,1928.1,2.90695]
[1617239556347,14.0,1928.2,1928.1,2.90695]
[1617239557949,84.4454,1928.1,1927.2,5.9270955]
[1617239558254,84.4454,1928.1,1927.3,0.31528424]
[1617239558454,84.4454,1928.1,1927.5,2.90695]
[1617239560456,2.90695,1927.6,1927.5,2.90695]
[1617239560658,3.99915,1927.6,1927.5,2.90695]
[1617239563056,3.99915,1927.6,1927.1,84.4051]
[1617239563557,3.99915,1927.6,1927.2,0.31737537]
[1617239564558,1.0922,1927.6,1927.5,2.90695]
[1617239565757,84.4454,1928.1,1927.5,2.90695]
[1617239566460,2.90695,1927.6,1927.3,2.90695]
[1617239566659,4.05175,1927.6,1927.3,2.90695]
[1617239568460,2.90695,1927.4,1927.3,2.90695]
[1617239573866,2.90695,1927.4,1927.3,83.79035]
[1617239574868,2.90695,1927.4,1927.3,2.90695]
[1617239576271,3.95895,1927.4,1927.3,2.90695]
[1617239577471,3.95895,1927.4,1926.8,62.4838]
[1617239577871,14.1219,1927.3,1926.5,4.1253496]
[1617239578272,86.8237,1926.9,1926.5,4.1253496]
[1617239578472,87.7989,1926.9,1926.5,4.1253496]
[1617239578673,87.7989,1926.9,1926.8,2.90695]
[1617239582075,0.9752,1926.9,1926.8,2.90695]
[1617239582474,2.90695,1927.0,1926.8,2.90695]
[1617239585377,63.2724,1927.2,1926.8,2.90695]
[1617239586577,63.2724,1927.2,1927.1,2.90695]
[1617239588080,17.02885,1927.3,1927.1,2.90695]
[1617239588280,17.02885,1927.3,1927.1,71.72335]
[1617239589980,17.02885,1927.3,1927.1,72.76685]
[1617239591181,17.02885,1927.3,1927.1,71.72335]
[1617239592283,17.02885,1927.3,1927.1,72.76715]
[1617239592488,17.02885,1927.3,1927.2,0.32095302]
[1617239616003,17.02885,1927.3,1927.2,1.66345302]
[1617239616902,17.02885,1927.3,1927.2,71.90425302]
[1617239617902,17.02885,1927.3,1927.2,1.66345302]
[1617239621004,14.1219,1927.3,1927.2,1.66345302]
[1617239629520,14.1219,1927.3,1927.2,61.41595302]
[1617239629924,14.1219,1927.3,1927.2,63.23940697]
[1617239631123,14.1219,1927.3,1927.2,3.48690697]
[1617239631323,14.1219,1927.3,1927.2,2.14440697]
[1617239631723,94.0154,1927.3,1927.2,0.32095302]
[1617239632626,14.1219,1927.3,1927.2,6.82537372]
[1617239632825,17.02885,1927.3,1927.2,6.82537372]
[1617239633426,17.02885,1927.3,1927.2,0.32095302]
[1617239633826,14.1219,1927.3,1927.2,0.32095302]
[1617239637432,14.1219,1927.3,1927.2,8.01291207]
[1617239639731,14.1219,1927.3,1927.2,0.32095302]
[1617239641236,14.1219,1927.3,1927.2,8.01197181]
[1617239644032,14.1219,1927.3,1927.2,0.32095302]
[1617239645134,14.1219,1927.3,1927.2,9.21072114]
[1617239646735,14.1219,1927.3,1927.2,91.31522114]
[1617239647136,14.1219,1927.3,1927.2,86.68048566]
[1617239651038,14.1219,1927.3,1927.2,93.14103951]
[1617239651339,14.1219,1927.3,1927.2,95.57232494]
[1617239652138,14.1219,1927.3,1927.2,86.68032387]
[1617239653039,17.02885,1927.3,1927.2,86.68032387]
[1617239653538,17.02885,1927.3,1927.2,87.72032387]
[1617239653738,17.02885,1927.3,1927.2,4.57582387]
[1617239654139,17.02885,1927.3,1927.2,0.32095302]
[1617239654539,17.02885,1927.3,1927.2,6.85525991]
[1617239654741,17.02885,1927.3,1927.1,6.53549775]
[1617239654939,72.6806,1927.2,1927.1,6.53549775]
[1617239655141,73.7649,1927.2,1927.1,6.53549775]
[1617239655339,73.7649,1927.2,1927.1,6.85862]
[1617239658740,73.7649,1927.2,1927.1,0.32312225]
[1617239659542,1.0843,1927.2,1927.1,0.32312225]
[1617239659743,1.0843,1927.2,1927.1,60.27032225]
[1617239660143,17.02885,1927.3,1927.1,62.09462721]
[1617239660345,1.0805,1927.2,1927.1,62.09462721]
[1617239660743,1.0805,1927.2,1927.1,61.77150496]
[1617239660943,1.0805,1927.2,1927.1,62.09470624]
[1617239661243,1.0805,1927.2,1927.1,67.44596118]
[1617239661446,1.0805,1927.2,1927.1,7.49876118]
[1617239661643,1.0805,1927.2,1927.1,2.14750624]
[1617239662145,1.0805,1927.2,1927.1,0.32320128]
[1617239662345,67.4288,1927.2,1927.1,0.32320128]
[1617239663645,67.4288,1927.2,1927.0,5.35329278]
[1617239664147,67.4288,1927.2,1926.9,4.15553651]
[1617239664745,67.4288,1927.2,1926.8,4.15687826]
[1617239664948,2.90695,1926.9,1926.8,4.15687826]
[1617239665147,2.90695,1926.9,1926.7,5.34351022]
[1617239665347,2.90695,1926.9,1926.8,0.3220397]
[1617239666447,2.90695,1926.9,1926.8,5.66629498]
[1617239671451,2.90695,1926.9,1926.8,0.3220397]
[1617239675055,2.90695,1926.9,1926.7,4.15280865]
[1617239675456,2.90695,1926.9,1926.8,4.15259123]
[1617239679259,2.90695,1926.9,1926.8,4.4741387]
[1617239680061,2.90695,1926.9,1926.8,0.32163543]
[1617239680262,2.90695,1926.9,1926.8,4.47325672]
[1617239681063,2.90695,1926.9,1926.8,71.35655672]
[1617239681863,2.90695,1926.9,1926.8,73.18091404]
[1617239683262,2.90695,1926.9,1926.8,72.85927861]
[1617239686066,2.90695,1926.9,1926.8,68.70765732]
[1617239686267,2.90695,1926.9,1926.8,69.02943807]
[1617239687767,2.90695,1926.9,1926.8,2.14613807]
[1617239687968,14.1219,1927.3,1926.9,76.6637]
[1617239688368,14.1219,1927.3,1927.1,4.15016259]
[1617239688569,14.1219,1927.3,1927.1,5.33325719]
[1617239688769,14.1219,1927.3,1927.2,0.3216403]
[1617239689172,14.1219,1927.3,1927.2,3.2285903]
[1617239689173,17.02885,1927.3,1927.2,3.2285903]
[1617239689368,17.02885,1927.3,1927.2,7.37856029]
[1617239689769,17.02885,1927.3,1927.2,4.47161029]
[1617239689968,17.02885,1927.3,1927.2,0.3216403]
[1617239690170,17.02885,1927.3,1927.1,5.97309241]
[1617239690372,17.02885,1927.3,1927.1,1.82405772]
[1617239690772,17.02885,1927.3,1927.2,0.32170305]
[1617239692973,17.02885,1927.3,1927.1,5.97291991]
[1617239693175,17.02885,1927.3,1927.1,1.82405772]
[1617239693574,17.02885,1927.3,1927.1,2.85215772]
[1617239693974,17.02885,1927.3,1927.1,1.82405772]
[1617239697380,17.02885,1927.3,1927.2,0.32203542]
[1617239701984,17.02885,1927.3,1927.2,82.48313542]
[1617239702585,17.02885,1927.3,1927.2,0.32203542]
[1617239708189,17.02885,1927.3,1927.2,4.47347963]
[1617239708890,17.02885,1927.3,1927.2,0.32203542]
[1617239709093,17.02885,1927.3,1927.2,68.12813542]
[1617239709291,17.02885,1927.3,1927.2,72.27906078]
[1617239709692,17.02885,1927.3,1927.2,74.10320477]
[1617239715096,17.02885,1927.3,1927.2,6.29710477]
[1617239715297,17.02885,1927.3,1927.2,7.33240477]
[1617239715497,14.1219,1927.3,1927.2,3.18147941]
[1617239715899,14.1219,1927.3,1927.2,6.69233126]
[1617239716098,14.1219,1927.3,1927.2,1.35733542]
[1617239717300,14.1219,1927.3,1927.2,0.32203542]
[1617239717499,17.02885,1927.3,1927.2,0.32203542]
[1617239718300,17.02885,1927.3,1927.2,5.65785019]
[1617239718901,17.02885,1927.3,1927.2,66.61815019]
[1617239719302,17.02885,1927.3,1927.2,2.14601748]
[1617239719701,17.02885,1927.3,1927.2,6.29922064]
[1617239720102,17.02885,1927.3,1927.2,4.47523858]
[1617239720502,80.63005,1927.3,1927.2,4.47523858]
[1617239720701,80.63005,1927.3,1927.2,0.32203542]
[1617239721501,80.63005,1927.3,1927.2,4.47619784]
[1617239723104,17.02885,1927.3,1927.2,4.47619784]
[1617239724608,17.02885,1927.3,1927.2,69.51959784]
[1617239725410,17.02885,1927.3,1927.2,71.34384508]
[1617239725610,17.02885,1927.3,1927.2,6.30044508]
[1617239726211,17.02885,1927.3,1927.2,4.47619784]
[1617239727013,17.02885,1927.3,1927.2,0.32203542]
[1617239729415,17.02885,1927.3,1927.2,4.48227777]
[1617239730016,17.02885,1927.3,1927.2,4.31217777]
[1617239730214,17.02885,1927.3,1927.2,0.15193542]
[1617239730616,17.02885,1927.3,1927.2,4.31155086]
[1617239732017,17.02885,1927.3,1927.2,0.15193542]
[1617239734120,17.02885,1927.3,1927.2,4.31224257]
[1617239734519,17.02885,1927.3,1927.2,0.15193542]
[1617239736622,17.02885,1927.3,1927.2,62.80203542]
[1617239737323,17.02885,1927.3,1927.2,64.62636394]
[1617239746440,17.02885,1927.3,1927.2,1.97626394]
[1617239746842,17.02885,1927.3,1927.2,4.3251834]
[1617239747242,77.06715,1927.3,1927.2,4.3251834]
[1617239747642,77.06715,1927.3,1927.2,0.15193542]
[1617239750846,77.06715,1927.3,1927.2,4.32206784]
[1617239751149,77.06715,1927.3,1927.2,0.15193542]
[1617239752753,77.06715,1927.3,1927.2,4.32332207]
[1617239752954,77.06715,1927.3,1927.2,0.15193542]
[1617239754157,17.02885,1927.3,1927.2,0.15193542]
[1617239755160,17.02885,1927.3,1927.2,5.51583706]
[1617239760263,17.02885,1927.3,1927.2,0.15193542]
[1617239760564,17.02885,1927.3,1927.2,5.51580307]
[1617239762167,17.02885,1927.3,1927.2,0.15193542]
[1617239763868,17.02885,1927.3,1927.2,3.05888542]
[1617239764069,17.02885,1927.3,1927.2,9.61254541]
[1617239764370,17.02885,1927.3,1927.2,3.05888542]
[1617239771573,17.02885,1927.3,1927.2,2.90695]
[1617239771774,17.02885,1927.3,1927.2,3.22648854]
[1617239774177,14.1219,1927.3,1927.2,10.96278266]
[1617239774978,14.1219,1927.3,1927.2,3.22648854]
[1617239775381,14.1219,1927.3,1927.2,10.95376483]
[1617239779087,14.1219,1927.3,1927.2,3.22648854]
[1617239788893,14.1219,1927.3,1927.2,12.11818818]
[1617239789295,14.1219,1927.3,1927.2,3.22648854]
[1617239791197,14.1219,1927.3,1927.2,12.11640418]
[1617239791898,14.1219,1927.3,1927.2,3.22648854]
[1617239792901,13.2737,1927.3,1927.2,3.22648854]
[1617239793301,12.562,1927.3,1927.2,3.22648854]
[1617239793504,12.562,1927.3,1927.2,12.11167275]
[1617239794906,12.4698,1927.3,1927.2,12.11167275]
[1617239795706,12.3045,1927.3,1927.2,12.11167275]
[1617239796607,12.3045,1927.3,1927.2,3.22648854]
[1617239798708,11.5249,1927.3,1927.2,3.22648854]
[1617239798910,11.5249,1927.3,1927.2,10.90225088]
[1617239801614,10.7129,1927.3,1927.2,10.90225088]
[1617239801813,10.7129,1927.3,1927.2,3.22648854]
[1617239803817,10.7129,1927.3,1927.2,4.19108854]
[1617239804218,10.2534,1927.3,1927.2,11.86890451]
[1617239805020,9.8071,1927.3,1927.2,4.19108854]
[1617239805219,11.09305,1928.2,1927.2,4.19108854]
[1617239805419,11.09305,1928.2,1927.3,78.4212]
[1617239805725,11.09305,1928.2,1928.1,4.13296362]
[1617239806920,11.09305,1928.2,1928.1,7.03991362]
[1617239809026,11.09305,1928.2,1928.1,2.90695]
[1617239809226,11.09305,1928.2,1928.1,7.03551403]
[1617239810427,11.09305,1928.2,1928.1,2.90695]
[1617239811629,11.09305,1928.2,1928.1,3.22117578]
[1617239812428,11.09305,1928.2,1928.1,7.33903359]
[1617239813631,11.09305,1928.2,1928.1,3.22117578]
[1617239814030,11.09305,1928.2,1928.1,7.33924475]
[1617239814830,11.09305,1928.2,1928.1,3.22117578]
[1617239815232,11.09305,1928.2,1928.1,7.33918783]
[1617239815632,11.09305,1928.2,1928.1,3.22117578]
[1617239816732,11.09305,1928.2,1928.1,8.51247399]
[1617239818935,11.09305,1928.2,1928.1,3.22117578]
[1617239819333,11.09305,1928.2,1928.1,8.5076987]
[1617239822639,11.09305,1928.2,1928.1,2.90695]
[1617239823041,11.09305,1928.2,1928.1,7.32166629]
[1617239823238,9.50235,1928.2,1928.1,8.4919014]
[1617239824336,9.38055,1928.2,1928.1,8.4919014]
[1617239824636,9.38055,1928.2,1928.1,3.21923215]
[1617239827039,9.02895,1928.2,1928.1,3.21923215]
[1617239827239,8.83105,1928.2,1928.1,3.21923215]
[1617239827740,8.83105,1928.2,1928.1,9.67637617]
[1617239827940,8.06175,1928.2,1928.1,9.67637617]
[1617239828140,8.06175,1928.2,1928.1,3.21923215]
[1617239829242,7.56915,1928.2,1928.1,3.21923215]
[1617239829440,7.44745,1928.2,1928.1,3.21923215]
[1617239829642,7.28205,1928.2,1928.1,3.21923215]
[1617239829842,4.58755,1928.2,1928.1,3.21923215]
[1617239830043,4.54895,1928.2,1928.1,9.67867869]
[1617239830243,15.1344,1929.3,1928.1,9.67867869]
[1617239830643,15.1344,1929.3,1928.5,4.11107062]
[1617239830846,15.1344,1929.3,1928.5,5.05047062]
[1617239831045,15.1344,1929.3,1929.2,2.90695]
[1617239845667,15.1344,1929.3,1929.2,3.95315]
[1617239846067,15.1344,1929.3,1929.2,4.26409396]
[1617239849669,2.90695,1930.2,1929.3,73.2032]
[1617239849871,2.90695,1930.2,1929.3,73.5131851]
[1617239850572,2.90695,1930.2,1929.3,59.5131851]
[1617239853274,2.90695,1930.2,1930.1,2.90695]
[1617239854073,2.90695,1930.2,1930.1,0.90695]
[1617239865386,2.90695,1930.4,1930.2,73.1169]
[1617239867388,2.90695,1930.4,1930.3,2.90695]
[1617239870691,2.90695,1930.4,1930.3,3.21738749]
[1617239871092,2.90695,1930.4,1930.3,2.90695]
[1617239871993,2.90695,1930.4,1930.3,3.21738506]
[1617239877896,15.90695,1930.4,1930.3,3.21738506]
[1617239878899,15.90695,1930.4,1930.3,2.90695]
[1617239879800,15.90695,1930.4,1930.3,3.21693608]
[1617239883305,13.0,1930.4,1930.3,3.21693608]
[1617239887912,14.0265,1930.4,1930.3,3.21693608]
[1617239888514,13.0,1930.4,1930.3,3.21693608]
[1617239889015,13.0,1930.4,1930.3,7.34764321]
[1617239896020,13.0,1930.4,1930.3,3.21693608]
[1617239896623,13.0,1930.4,1930.3,7.35300469]
[1617239898022,14.3754,1930.4,1930.3,7.35300469]
[1617239898522,14.3754,1930.4,1930.3,3.21693608]
[1617239900525,14.3754,1930.4,1930.3,8.54735983]
[1617239900922,14.3754,1930.4,1930.3,3.21693608]
[1617239901724,14.3754,1930.4,1930.3,8.54691959]
[1617239903726,17.28235,1930.4,1930.3,8.54691959]
[1617239905028,13.0,1930.4,1930.3,8.54691959]
[1617239907029,14.2959,1930.4,1930.3,8.54691959]
[1617239907430,14.2959,1930.4,1930.3,5.63996959]
[1617239907630,14.2959,1930.4,1930.3,0.30998608]
[1617239907829,17.20285,1930.4,1930.3,0.30998608]
[1617239908029,17.20285,1930.4,1930.3,4.45777411]
[1617239908431,17.20285,1930.4,1930.3,0.30998608]
[1617239908630,17.20285,1930.4,1930.3,4.45717892]
[1617239910535,17.20285,1930.4,1930.3,0.30998608]
[1617239912738,17.20285,1930.4,1930.3,4.15810926]
[1617239912939,17.20285,1930.4,1930.2,4.15913391]
[1617239913240,17.20285,1930.4,1930.1,4.16147536]
[1617239913637,17.20285,1930.4,1930.0,5.98340592]
[1617239913837,2.90695,1930.1,1930.0,5.98340592]
[1617239914238,2.90695,1930.1,1930.0,6.29346336]
[1617239915039,2.90695,1930.1,1930.0,2.13153171]
[1617239915238,2.90695,1930.1,1930.0,1.82147427]
[1617239916943,2.90695,1930.1,1929.9,85.272]
[1617239917742,2.90695,1930.1,1929.7,4.16271849]
[1617239917942,4.17185,1929.8,1929.7,4.16271849]
[1617239918341,4.17185,1929.8,1929.7,0.3096761]
[1617239919546,4.17185,1929.8,1929.6,5.35238802]
[1617239919744,4.17185,1929.8,1929.7,4.16375052]
[1617239920145,4.17185,1929.8,1929.7,4.47341429]
[1617239920545,4.17185,1929.8,1929.7,4.16375052]
[1617239921445,4.17185,1929.8,1929.7,89.89345052]
[1617239921846,4.17185,1929.8,1929.7,91.71536167]
[1617239925151,2.90695,1929.8,1929.7,91.71536167]
[1617239926351,2.90695,1929.8,1929.7,87.55161115]
[1617239928751,2.90695,1929.8,1929.7,85.7297]
[1617239931152,2.90695,1929.8,1929.3,4.1660412]
[1617239931752,2.90695,1929.8,1929.4,4.16511798]
[1617239932152,15.3664,1930.3,1929.5,2.90695]
[1617239932351,15.3664,1930.3,1930.1,68.3223]
[1617239934152,2.90695,1930.2,1930.0,2.90695]
[1617239934353,15.3664,1930.3,1930.0,4.00845]
[1617239935359,15.3664,1930.3,1930.0,8.16317405]
[1617239936156,15.3664,1930.3,1930.2,2.90695]
[1617239944567,15.3664,1930.3,1929.8,4.14714299]
[1617239944766,16.6337,1930.3,1929.8,4.14714299]
[1617239944967,16.6337,1930.3,1929.7,5.33204099]
[1617239944968,16.6337,1930.3,1929.7,4.14913249]
[1617239945569,61.8652,1930.0,1929.7,4.14913249]
[1617239945867,61.8652,1930.0,1929.1,61.8652]
[1617239945868,61.8652,1930.0,1929.2,4.15401876]
[1617239946267,2.90695,1929.3,1929.0,4.15743835]
[1617239946566,4.10275,1929.3,1928.9,4.15777379]
[1617239946967,14.6847,1929.2,1928.9,4.15777379]
[1617239947367,14.6847,1929.2,1928.8,4.16015902]
[1617239947868,14.6847,1929.2,1928.7,4.1605287]
[1617239948269,2.90695,1928.8,1928.7,4.1605287]
[1617239948468,2.90695,1928.8,1928.6,5.34864122]
[1617239948668,3.87835,1928.8,1928.6,5.34864122]
[1617239949169,3.87835,1928.8,1928.7,4.16085941]
[1617239951972,3.87835,1928.8,1928.6,4.16268002]
[1617239952573,3.87835,1928.8,1928.5,4.1651467]
[1617239952972,3.87835,1928.8,1928.2,4.16915073]
[1617239953774,3.87835,1928.8,1928.1,4.17093653]
[1617239953973,60.2131,1928.2,1928.1,4.17093653]
[1617239954373,64.09115,1928.2,1928.1,4.17093653]
[1617239955174,3.87805,1928.2,1928.1,4.17093653]
[1617239955875,3.87805,1928.2,1927.5,2.90695]
[1617239956274,14.2224,1928.1,1927.5,2.90695]
[1617239956474,2.90695,1927.6,1927.5,2.90695]
[1617239956675,4.02405,1927.6,1927.5,2.90695]
[1617239957274,1.1171,1927.6,1927.5,2.90695]
[1617239957874,72.7294,1927.9,1927.5,2.90695]
[1617239958376,72.7294,1927.9,1927.8,2.90695]
[1617239960375,75.63635,1927.9,1927.8,2.90695]
[1617239961576,75.63635,1927.9,1926.8,4.14706941]
[1617239961577,2.90695,1927.9,1926.8,4.14706941]
[1617239961777,88.1108,1927.4,1926.8,4.14706941]
[1617239962375,88.1108,1927.4,1927.3,2.90695]
[1617239962976,86.8219,1927.4,1927.3,2.90695]
[1617239963475,86.8019,1927.4,1927.3,2.90695]
[1617239967283,2.90695,1927.8,1927.3,2.90695]
[1617239967483,14.2224,1928.1,1927.3,79.63525]
[1617239968385,14.2224,1928.1,1927.9,2.90695]
[1617239968985,15.1095,1928.1,1927.3,76.7283]
[1617239970489,15.1095,1928.1,1927.8,2.90695]
[1617239970690,15.1095,1928.1,1927.3,76.7283]
[1617239972590,15.1095,1928.1,1927.6,2.90695]
[1617239973497,14.2224,1928.1,1927.6,2.90695]
[1617239974493,2.90695,1927.8,1927.6,2.90695]
[1617239975394,14.2224,1928.1,1927.8,85.9686]
[1617239976196,14.2224,1928.1,1927.6,2.90695]
[1617239976597,14.2224,1928.1,1928.0,2.90695]
[1617239976795,14.2224,1928.1,1928.0,4.11215]
[1617239978398,14.2224,1928.1,1928.0,2.90695]
[1617239990616,17.12935,1928.1,1928.0,2.90695]
[1617239993823,14.2224,1928.1,1928.0,2.90695]
[1617239994626,15.3914,1928.1,1928.0,2.90695]
[1617239997325,14.2224,1928.1,1928.0,2.90695]
[1617240000028,14.2224,1928.1,1928.0,3.21920044]
[1617240001531,14.2224,1928.1,1928.0,7.36193533]
[1617240002630,14.2224,1928.1,1928.0,3.21920044]
[1617240002830,14.2224,1928.1,1928.0,2.90695]
[1617240003030,14.2224,1928.1,1928.0,3.2186445]
[1617240003431,14.2224,1928.1,1928.0,8.54612551]
[1617240005132,14.2224,1928.1,1928.0,3.2186445]
[1617240008136,14.2224,1928.1,1928.0,8.54184935]
[1617240008537,14.2224,1928.1,1928.0,3.2186445]
[1617240015042,14.2224,1928.1,1928.0,3.2086445]
[1617240018850,14.2224,1928.1,1928.0,9.7131646]
[1617240023155,14.2224,1928.1,1928.0,3.2086445]
[1617240024756,14.2224,1928.1,1928.0,9.70453491]
[1617240025856,14.2224,1928.1,1928.0,3.2086445]
[1617240028160,14.2224,1928.1,1928.0,9.70476599]
[1617240028460,14.2224,1928.1,1928.0,3.2086445]
[1617240029263,14.2224,1928.1,1928.0,9.7045428]
[1617240030064,14.2224,1928.1,1928.0,3.2086445]
[1617240033768,15.346,1928.1,1928.0,3.2086445]
[1617240035071,14.2224,1928.1,1928.0,3.2086445]
[1617240040979,15.6121,1928.1,1928.0,3.2086445]
[1617240041784,88.8604,1928.1,1928.0,3.2086445]
[1617240043485,15.6121,1928.1,1928.0,3.2086445]
[1617240044086,15.6121,1928.1,1928.0,10.92551303]
[1617240044684,15.6121,1928.1,1928.0,3.2086445]
[1617240045084,15.6121,1928.1,1928.0,10.92672683]
[1617240045283,15.6121,1928.1,1928.0,8.02977683]
[1617240045483,15.6121,1928.1,1928.0,0.3116945]
[1617240046585,15.6121,1928.1,1927.9,0.31286952]
[1617240046985,15.6121,1928.1,1928.0,2.90695]
[1617240047184,15.6121,1928.1,1928.0,3.21979738]
[1617240051698,15.6121,1928.1,1928.0,0.31284738]
[1617240052101,15.6121,1928.1,1928.0,6.8485737]
[1617240052299,15.6121,1928.1,1928.0,6.53572632]
[1617240052499,15.6121,1928.1,1928.0,0.31288032]
[1617240053099,18.51905,1928.1,1928.0,3.21983032]
[1617240053400,18.51905,1928.1,1928.0,9.75149295]
[1617240053899,18.51905,1928.1,1928.0,3.21983032]
[1617240055099,15.6121,1928.1,1928.0,3.21983032]
[1617240055701,15.6121,1928.1,1928.0,9.75180301]
[1617240055901,97.0582,1928.1,1928.0,9.75180301]
[1617240057103,99.96515,1928.1,1928.0,9.75180301]
[1617240057304,99.96515,1928.1,1928.0,3.21983032]
[1617240057708,99.96515,1928.1,1928.0,9.75690688]
[1617240060608,99.96515,1928.1,1928.0,3.21983032]
[1617240062808,17.12935,1928.1,1928.0,3.21983032]
[1617240063211,14.2224,1928.1,1928.0,3.21983032]
[1617240063408,14.2224,1928.1,1928.0,80.94833032]
[1617240064009,14.2224,1928.1,1928.0,82.77127242]
[1617240065310,17.12935,1928.1,1928.0,82.77127242]
[1617240069815,17.12935,1928.1,1928.0,5.04277242]
[1617240070015,81.13495,1928.1,1928.0,5.04277242]
[1617240070315,81.13495,1928.1,1928.0,3.21983032]
[1617240071116,82.32315,1928.1,1928.0,3.21983032]
[1617240072022,82.32315,1928.1,1928.0,9.75374414]
[1617240074921,82.32315,1928.1,1928.0,6.84679414]
[1617240076121,82.32315,1928.1,1928.0,0.31288032]
[1617240077523,82.32315,1928.1,1928.0,5.65592308]
[1617240079624,82.32315,1928.1,1928.0,0.31288032]
[1617240084934,81.13495,1928.1,1928.0,0.31288032]
[1617240086034,81.13495,1928.1,1928.0,4.46456638]
[1617240086334,81.13495,1928.1,1928.0,0.31288032]
[1617240086538,17.12935,1928.1,1928.0,0.31288032]
[1617240087135,17.12935,1928.1,1928.0,5.6459052]
[1617240087335,14.2224,1928.1,1928.0,8.5528552]
[1617240088938,14.2224,1928.1,1928.0,83.11317488]
[1617240089142,14.2224,1928.1,1928.0,83.42626342]
[1617240089640,14.2224,1928.1,1928.0,85.2494253]
[1617240091441,17.12935,1928.1,1928.0,85.2494253]
[1617240092642,17.12935,1928.1,1928.0,79.91640042]
[1617240094944,17.12935,1928.1,1928.0,5.04320042]
[1617240095344,98.56585,1928.1,1928.0,7.3666281]
[1617240095544,98.56585,1928.1,1928.0,4.4596781]
[1617240097446,98.56585,1928.1,1928.0,7.3666281]
[1617240098649,98.56585,1928.1,1928.0,3.22003854]
[1617240098847,17.12935,1928.1,1928.0,3.22003854]
[1617240099248,17.12935,1928.1,1928.0,7.36356986]
[1617240099646,17.12935,1928.1,1928.0,3.22003854]
[1617240100049,17.12935,1928.1,1928.0,5.04325364]
[1617240100750,17.12935,1928.1,1928.0,9.18604663]
[1617240101150,17.12935,1928.1,1928.0,5.04325364]
[1617240101550,17.12935,1928.1,1928.0,9.18575066]
[1617240101951,17.12935,1928.1,1928.0,5.04325364]
[1617240102250,17.12935,1928.1,1928.0,9.18598711]
[1617240103749,17.12935,1928.1,1928.0,7.36277201]
[1617240104354,92.11935,1928.1,1928.0,7.36277201]
[1617240105352,92.11935,1928.1,1928.0,3.22003854]